[Event "Limburg Open 2022"]
[Site "Maastricht"]
[Date "2022.06.06"]
[Round "6.7"]
[White "Van Roon, Sjoerd"]
[Black "Lahaye, Rick"]
[Result "0-1"]
[ECO "B51"]
[WhiteElo "2280"]
[BlackElo "2412"]
[PlyCount "176"]
[EventDate "2022.06.03"]
[EventType "swiss"]
[EventRounds "7"]
[EventCountry "NED"]
[SourceTitle "Limburg Open"]
[Source "Limburg Open"]
[SourceDate "2022.06.06"]
[SourceVersion "7"]
[SourceVersionDate "2022.06.06"]
[SourceQuality "1"]
[TimeControl "7200+15"]

1. e4 {[%emt 0:00:03]} c5 {[%emt 0:00:28]} 2. Nf3 {[%emt 0:00:08]} d6 {[%emt 0:
00:16]} 3. Bb5+ {[%emt 0:00:08]} Nd7 {[%emt 0:00:04]} 4. d4 {[%emt 0:00:17]}
cxd4 {[%emt 0:00:16]} 5. Qxd4 {[%emt 0:00:04]} a6 {[%emt 0:00:28]} 6. Bxd7+ {
[%emt 0:00:17]} Bxd7 {[%emt 0:00:49]} 7. Nc3 {[%emt 0:00:08]} Bc6 {[%emt 0:01:
02]} 8. Bg5 {[%emt 0:00:54]} h6 {[%emt 0:01:05]} 9. Bh4 {[%emt 0:00:28]} e5 {
[%emt 0:01:17]} 10. Qd3 {[%emt 0:03:34]} g5 {[%emt 0:01:02]} 11. Bg3 {[%emt 0:
00:04]} Nf6 {[%emt 0:00:17]} 12. Nd2 {[%emt 0:09:14]} b5 {[%emt 0:02:16]} 13.
h4 {[%emt 0:00:11]} b4 {[%emt 0:04:16]} 14. Nd5 {[%emt 0:18:55]} Bb5 {[%emt 0:
02:48]} 15. Qb3 {[%emt 0:04:04]} Nxd5 {[%emt 0:00:19]} 16. exd5 {[%emt 0:00:19]
} f5 {[%emt 0:01:55]} 17. Qxb4 {[%emt 0:05:15]} f4 {[%emt 0:00:08]} 18. a4 {
[%emt 0:01:45]} Bd7 {[%emt 0:01:31]} 19. Qe4 {[%emt 0:00:42]} Kf7 {[%emt 0:01:
41]} 20. h5 {[%emt 0:02:18]} Qf6 {[%emt 0:02:32]} 21. Bh2 {[%emt 0:00:22]} Bf5
{[%emt 0:00:56]} 22. Qb4 {[%emt 0:01:31]} e4 {[%emt 0:01:52]} 23. g3 {[%emt 0:
07:50]} a5 {[%emt 0:20:14]} 24. Qc3 {[%emt 0:06:02]} Qxc3 {[%emt 0:22:30]} 25.
bxc3 {[%emt 0:00:05]} Bg7 {[%emt 0:00:32]} 26. gxf4 {[%emt 0:02:50]} Bxc3 {
[%emt 0:01:10]} 27. Rb1 {[%emt 0:01:39]} Bb4 {[%emt 0:17:05]} 28. c3 {[%emt 0:
13:31]} Bc5 {[%emt 0:16:14]} 29. fxg5 {[%emt 0:03:22]} hxg5 {[%emt 0:01:52]}
30. Rb7+ {[%emt 0:00:08]} Kf6 {[%emt 0:01:32]} 31. Nc4 {[%emt 0:00:33]} Rhb8 {
[%emt 0:00:35]} 32. Rxb8 {[%emt 0:01:37]} Rxb8 {[%emt 0:00:06]} 33. Ke2 {
[%emt 0:07:47]} Bg4+ {[%emt 0:03:11]} 34. Kd2 {[%emt 0:00:04]} Bf3 {[%emt 0:00:
41]} 35. Rf1 {[%emt 0:00:15]} Ke7 {[%emt 0:01:33]} 36. h6 {[%emt 0:00:08]} Rh8
{[%emt 0:01:39]} 37. Nxa5 {[%emt 0:00:50]} Rxh6 {[%emt 0:00:49]} 38. Bg3 {
[%emt 0:00:04]} Bg2 {[%emt 0:02:08]} 39. Re1 {[%emt 0:06:21]} e3+ {[%emt 0:00:
59]} 40. fxe3 {[%emt 0:00:05]} Rh3 {[%emt 0:00:42]} 41. Nc6+ {[%emt 0:06:02]}
Kf6 {[%emt 0:03:04]} 42. Bf2 {[%emt 0:00:32]} Bxd5 {[%emt 0:01:21]} 43. Nd4 {
[%emt 0:00:51]} Rh2 {[%emt 0:01:18]} 44. Rf1 {[%emt 0:00:19]} Bc4 {[%emt 0:00:
38]} 45. Ne2 {[%emt 0:00:08]} Kg6 {[%emt 0:01:27]} 46. Ke1 {[%emt 0:00:33]}
Bxe3 {[%emt 0:01:08]} 47. a5 {[%emt 0:01:51]} Ba6 {[%emt 0:00:01]} 48. Ng3 {
[%emt 0:01:45]} Bxf1 {[%emt 0:00:31]} 49. Bxe3 {[%emt 0:00:08]} Bd3 {[%emt 0:
00:51]} 50. Bf2 {[%emt 0:03:39]} g4 {[%emt 0:00:19]} 51. Bb6 {[%emt 0:08:19]}
d5 {[%emt 0:00:21]} 52. Bd4 {[%emt 0:00:34]} Ra2 {[%emt 0:00:09]} 53. Bb6 {
[%emt 0:00:04]} Bc4 {[%emt 0:00:07]} 54. Bd4 {[%emt 0:00:13]} Kg5 {[%emt 0:00:
21]} 55. Be3+ {[%emt 0:00:02]} Kh4 {[%emt 0:00:35]} 56. Bf4 {[%emt 0:00:14]}
Kh3 {[%emt 0:00:12]} 57. Bc7 {[%emt 0:00:32]} Kg2 {[%emt 0:00:32]} 58. Nh5 {
[%emt 0:00:21]} Kf3 {[%emt 0:00:13]} 59. Ng3 {[%emt 0:00:38]} Ke3 {[%emt 0:00:
24]} 60. Bb6+ {[%emt 0:00:29]} Kd3 {[%emt 0:00:06]} 61. Bd4 {[%emt 0:00:03]}
Rxa5 {[%emt 0:00:07]} 62. Kf2 {[%emt 0:00:11]} Ra2+ {[%emt 0:00:03]} 63. Kg1 {
[%emt 0:00:01]} Rc2 {[%emt 0:00:12]} 64. Nf5 {[%emt 0:00:46]} Ke4 {[%emt 0:00:
34]} 65. Ne3 {[%emt 0:00:01]} Rc1+ {[%emt 0:00:26]} 66. Kg2 {[%emt 0:00:10]}
Kf4 {[%emt 0:00:12]} 67. Bg7 {[%emt 0:00:22]} Kg5 {[%emt 0:00:24]} 68. Kf2 {
[%emt 0:00:58]} Rh1 {[%emt 0:00:15]} 69. Kg2 {[%emt 0:00:17]} Rh3 {[%emt 0:00:
08]} 70. Nd1 {[%emt 0:00:52]} Bd3 {[%emt 0:00:10]} 71. Be5 {[%emt 0:00:42]} Kf5
{[%emt 0:00:11]} 72. Bg3 {[%emt 0:00:14]} Be4+ {[%emt 0:00:07]} 73. Kf2 {
[%emt 0:00:01]} Bf3 {[%emt 0:00:08]} 74. Ne3+ {[%emt 0:00:15]} Ke4 {[%emt 0:00:
02]} 75. Nf1 {[%emt 0:00:02]} Kd3 {[%emt 0:00:14]} 76. Be5 {[%emt 0:00:01]} Be4
{[%emt 0:00:33]} 77. Nh2 {[%emt 0:01:00]} Bf3 {[%emt 0:00:14]} 78. Nf1 {
[%emt 0:00:04]} Be2 {[%emt 0:00:27]} 79. Ng3 {[%emt 0:01:27]} Bd1 {[%emt 0:00:
07]} 80. Kg2 {[%emt 0:00:18]} Bf3+ {[%emt 0:00:13]} 81. Kg1 {[%emt 0:00:17]}
Rh7 {[%emt 0:00:31]} 82. Bd4 {[%emt 0:00:25]} Rb7 {[%emt 0:00:21]} 83. Nh5 {
[%emt 0:00:26]} Rb2 {[%emt 0:00:09]} 84. Kf1 {[%emt 0:00:02]} Rc2 {[%emt 0:00:
29]} 85. Nf4+ {[%emt 0:00:32]} Kc4 {[%emt 0:00:14]} 86. Ng6 {[%emt 0:01:06]}
Rxc3 {[%emt 0:00:22]} 87. Bxc3 {[%emt 0:00:00]} Kxc3 {[%emt 0:00:01]} 88. Kf2 {
[%emt 0:00:00]} d4 {[%emt 0:00:03]} 0-1

[Event "Limburg Open 2022"]
[Site "Maastricht"]
[Date "2022.06.06"]
[Round "6.8"]
[White "Ondersteijn, Niels"]
[Black "Nemegeer, Arne"]
[Result "1-0"]
[ECO "B11"]
[WhiteElo "2376"]
[BlackElo "2107"]
[PlyCount "67"]
[EventDate "2022.06.03"]
[EventType "swiss"]
[EventRounds "7"]
[EventCountry "NED"]
[SourceTitle "Limburg Open"]
[Source "Limburg Open"]
[SourceDate "2022.06.06"]
[SourceVersion "7"]
[SourceVersionDate "2022.06.06"]
[SourceQuality "1"]
[TimeControl "7200+15"]

1. e4 {[%emt 0:00:43]} c6 {[%emt 0:00:03]} 2. Nc3 {[%emt 0:00:29]} d5 {[%emt 0:
00:04]} 3. Nf3 {[%emt 0:00:30]} dxe4 {[%emt 0:00:04]} 4. Nxe4 {[%emt 0:00:07]}
Nf6 {[%emt 0:00:03]} 5. Qe2 {[%emt 0:00:50]} Nxe4 {[%emt 0:00:05]} 6. Qxe4 {
[%emt 0:00:04]} Qa5 {[%emt 0:00:05]} 7. Bc4 {[%emt 0:04:40]} Bf5 {[%emt 0:00:
50]} 8. Qf4 {[%emt 0:03:27]} e6 {[%emt 0:02:08]} 9. O-O {[%emt 0:02:08]} Be7 {
[%emt 0:14:16]} 10. d3 {[%emt 0:01:16]} O-O {[%emt 0:09:07]} 11. Bd2 {[%emt 0:
13:30]} Qd8 {[%emt 0:05:03]} 12. a4 {[%emt 0:19:14]} Nd7 {[%emt 0:10:16]} 13.
a5 {[%emt 0:08:19]} a6 {[%emt 0:03:46]} 14. g4 {[%emt 0:05:51]} Bg6 {[%emt 0:
01:32]} 15. h4 {[%emt 0:01:58]} h5 {[%emt 0:09:58]} 16. g5 {[%emt 0:01:11]} Qb8
{[%emt 0:08:56]} 17. Qxb8 {[%emt 0:06:07]} Raxb8 {[%emt 0:00:09]} 18. Bf4 {
[%emt 0:01:00]} Rbc8 {[%emt 0:00:41]} 19. Rfe1 {[%emt 0:00:33]} Bc5 {[%emt 0:
09:13]} 20. Kg2 {[%emt 0:02:28]} Rfe8 {[%emt 0:03:52]} 21. c3 {[%emt 0:04:01]}
Bf5 {[%emt 0:02:55]} 22. d4 {[%emt 0:00:56]} Be7 {[%emt 0:03:20]} 23. b4 {
[%emt 0:00:56]} Nf8 {[%emt 0:04:11]} 24. Nd2 {[%emt 0:05:23]} f6 {[%emt 0:11:
56]} 25. gxf6 {[%emt 0:10:46]} Bxf6 {[%emt 0:00:14]} 26. Bg3 {[%emt 0:11:34]}
Ng6 {[%emt 0:04:27]} 27. Ne4 {[%emt 0:01:25]} Be7 {[%emt 0:06:51]} 28. Re3 {
[%emt 0:02:53]} Rcd8 {[%emt 0:02:21]} 29. Nc5 {[%emt 0:01:25]} Nxh4+ {[%emt 0:
02:49]} 30. Bxh4 {[%emt 0:00:32]} Bxh4 {[%emt 0:00:04]} 31. Nxb7 {[%emt 0:00:
42]} Bg5 {[%emt 0:00:30]} 32. Re5 {[%emt 0:00:42]} Rd5 {[%emt 0:02:00]} 33.
Bxd5 {[%emt 0:01:01]} cxd5 {[%emt 0:00:04]} 34. Nd6 {[%emt 0:00:18]} 1-0

[Event "Limburg Open 2022"]
[Site "Maastricht"]
[Date "2022.06.06"]
[Round "6.9"]
[White "Van Cappellen, Jonas"]
[Black "Suvorov, Alexander"]
[Result "1/2-1/2"]
[ECO "C88"]
[WhiteElo "2244"]
[BlackElo "2348"]
[PlyCount "121"]
[EventDate "2022.06.03"]
[EventType "swiss"]
[EventRounds "7"]
[EventCountry "NED"]
[SourceTitle "Limburg Open"]
[Source "Limburg Open"]
[SourceDate "2022.06.06"]
[SourceVersion "7"]
[SourceVersionDate "2022.06.06"]
[SourceQuality "1"]
[TimeControl "7200+15"]

1. e4 {[%emt 0:00:03]} e5 {[%emt 0:00:30]} 2. Nf3 {[%emt 0:00:07]} Nc6 {
[%emt 0:00:04]} 3. Bb5 {[%emt 0:00:07]} a6 {[%emt 0:00:05]} 4. Ba4 {[%emt 0:00:
06]} Nf6 {[%emt 0:00:08]} 5. O-O {[%emt 0:00:08]} Be7 {[%emt 0:00:09]} 6. Re1 {
[%emt 0:00:31]} b5 {[%emt 0:00:10]} 7. Bb3 {[%emt 0:00:07]} O-O {[%emt 0:00:10]
} 8. a4 {[%emt 0:00:07]} Bb7 {[%emt 0:01:06]} 9. d3 {[%emt 0:00:09]} d6 {
[%emt 0:02:08]} 10. Nbd2 {[%emt 0:00:39]} Nd7 {[%emt 0:02:40]} 11. Nf1 {
[%emt 0:00:21]} Nc5 {[%emt 0:02:50]} 12. axb5 {[%emt 0:00:24]} axb5 {[%emt 0:
00:26]} 13. Rxa8 {[%emt 0:00:08]} Qxa8 {[%emt 0:01:27]} 14. Bd5 {[%emt 0:00:09]
} Nd8 {[%emt 0:02:19]} 15. Bxb7 {[%emt 0:00:11]} Qxb7 {[%emt 0:00:12]} 16. Ne3
{[%emt 0:00:29]} Nde6 {[%emt 0:03:34]} 17. Nf5 {[%emt 0:01:07]} Bf6 {[%emt 0:
03:44]} 18. h4 {[%emt 0:00:10]} g6 {[%emt 0:44:33]} 19. Nh6+ {[%emt 0:02:10]}
Kh8 {[%emt 0:02:46]} 20. Ng5 {[%emt 0:12:46]} Nxg5 {[%emt 0:03:22]} 21. hxg5 {
[%emt 0:01:13]} Bg7 {[%emt 0:01:02]} 22. Ng4 {[%emt 0:21:07]} Nd7 {[%emt 0:08:
35]} 23. Be3 {[%emt 0:02:46]} f5 {[%emt 0:06:32]} 24. gxf6 {[%emt 0:00:42]}
Nxf6 {[%emt 0:00:32]} 25. Nxf6 {[%emt 0:01:41]} Bxf6 {[%emt 0:00:20]} 26. Qg4 {
[%emt 0:01:12]} Qc6 {[%emt 0:04:20]} 27. Qe6 {[%emt 0:04:45]} Bg7 {[%emt 0:05:
58]} 28. c3 {[%emt 0:06:54]} Re8 {[%emt 0:01:09]} 29. Qb3 {[%emt 0:03:04]} Ra8
{[%emt 0:01:10]} 30. Qe6 {[%emt 0:10:09]} Re8 {[%emt 0:01:34]} 31. Qg4 {
[%emt 0:03:28]} Ra8 {[%emt 0:00:45]} 32. g3 {[%emt 0:00:59]} Qe8 {[%emt 0:00:
32]} 33. Kg2 {[%emt 0:00:55]} Kg8 {[%emt 0:01:35]} 34. Rh1 {[%emt 0:06:16]} Qf7
{[%emt 0:00:58]} 35. Qh3 {[%emt 0:02:36]} Bh8 {[%emt 0:00:36]} 36. Rf1 {
[%emt 0:05:34]} Qe7 {[%emt 0:07:36]} 37. Qh1 {[%emt 0:05:13]} c6 {[%emt 0:03:
01]} 38. Ra1 {[%emt 0:00:18]} Qb7 {[%emt 0:01:09]} 39. Qd1 {[%emt 0:01:55]}
Rxa1 {[%emt 0:02:17]} 40. Qxa1 {[%emt 0:00:06]} Bf6 {[%emt 0:00:42]} 41. Qa2+ {
[%emt 0:01:59]} d5 {[%emt 0:00:06]} 42. Qb3 {[%emt 0:05:50]} Qd7 {[%emt 0:02:
27]} 43. Bc5 {[%emt 0:05:59]} h5 {[%emt 0:00:40]} 44. Qa2 {[%emt 0:02:39]} Kh7
{[%emt 0:01:10]} 45. Qa8 {[%emt 0:02:22]} Bg7 {[%emt 0:00:14]} 46. Qa7 {
[%emt 0:00:59]} Qxa7 {[%emt 0:00:39]} 47. Bxa7 {[%emt 0:00:03]} dxe4 {[%emt 0:
00:47]} 48. dxe4 {[%emt 0:00:05]} g5 {[%emt 0:00:54]} 49. b3 {[%emt 0:00:43]}
Kg6 {[%emt 0:00:13]} 50. c4 {[%emt 0:00:22]} bxc4 {[%emt 0:00:18]} 51. bxc4 {
[%emt 0:00:02]} Bf8 {[%emt 0:00:26]} 52. Bb6 {[%emt 0:00:33]} Bb4 {[%emt 0:00:
26]} 53. Bd8 {[%emt 0:00:30]} Bc5 {[%emt 0:00:16]} 54. f3 {[%emt 0:00:35]} Bf8
{[%emt 0:00:13]} 55. Kh3 {[%emt 0:00:20]} Bg7 {[%emt 0:00:11]} 56. Be7 {
[%emt 0:01:07]} Bf6 {[%emt 0:00:07]} 57. Bd6 {[%emt 0:00:11]} Kf7 {[%emt 0:00:
09]} 58. Bc5 {[%emt 0:00:12]} Ke6 {[%emt 0:00:16]} 59. Bb4 {[%emt 0:00:23]} Be7
{[%emt 0:00:13]} 60. Bd2 {[%emt 0:00:07]} Bf6 {[%emt 0:00:27]} 61. Bb4 {
[%emt 0:00:05]} 1/2-1/2

[Event "Limburg Open 2022"]
[Site "Maastricht"]
[Date "2022.06.06"]
[Round "6.10"]
[White "Thompson, Ian D"]
[Black "Pauly, Carlo"]
[Result "0-1"]
[ECO "A26"]
[WhiteElo "2059"]
[BlackElo "2305"]
[PlyCount "92"]
[EventDate "2022.06.03"]
[EventType "swiss"]
[EventRounds "7"]
[EventCountry "NED"]
[SourceTitle "Limburg Open"]
[Source "Limburg Open"]
[SourceDate "2022.06.06"]
[SourceVersion "7"]
[SourceVersionDate "2022.06.06"]
[SourceQuality "1"]
[TimeControl "7200+15"]

1. c4 {[%emt 0:00:03]} Nf6 {[%emt 0:00:07]} 2. Nc3 {[%emt 0:00:11]} g6 {
[%emt 0:00:08]} 3. g3 {[%emt 0:00:09]} Bg7 {[%emt 0:00:07]} 4. Bg2 {[%emt 0:00:
06]} O-O {[%emt 0:00:07]} 5. Nf3 {[%emt 0:00:14]} d6 {[%emt 0:00:11]} 6. O-O {
[%emt 0:00:25]} Nc6 {[%emt 0:00:10]} 7. Rb1 {[%emt 0:00:45]} a5 {[%emt 0:00:28]
} 8. a3 {[%emt 0:00:26]} e5 {[%emt 0:00:46]} 9. d3 {[%emt 0:00:15]} Re8 {
[%emt 0:02:16]} 10. Bg5 {[%emt 0:29:56]} h6 {[%emt 0:02:27]} 11. Bxf6 {[%emt 0:
00:06]} Bxf6 {[%emt 0:00:04]} 12. b4 {[%emt 0:00:13]} axb4 {[%emt 0:00:06]} 13.
axb4 {[%emt 0:00:06]} Bg7 {[%emt 0:00:12]} 14. b5 {[%emt 0:01:13]} Ne7 {
[%emt 0:00:14]} 15. Nd2 {[%emt 0:01:24]} c6 {[%emt 0:01:40]} 16. bxc6 {[%emt 0:
03:41]} bxc6 {[%emt 0:00:09]} 17. Qc2 {[%emt 0:07:20]} Be6 {[%emt 0:10:07]} 18.
Rb7 {[%emt 0:10:33]} Rb8 {[%emt 0:09:05]} 19. Rfb1 {[%emt 0:04:03]} Rxb7 {
[%emt 0:00:22]} 20. Rxb7 {[%emt 0:00:02]} Qa5 {[%emt 0:02:32]} 21. Nde4 {
[%emt 0:09:57]} Nf5 {[%emt 0:04:17]} 22. e3 {[%emt 0:05:03]} d5 {[%emt 0:03:29]
} 23. cxd5 {[%emt 0:02:09]} cxd5 {[%emt 0:00:06]} 24. Rb5 {[%emt 0:01:21]} Qa1+
{[%emt 0:01:21]} 25. Rb1 {[%emt 0:00:07]} Qa3 {[%emt 0:01:30]} 26. Nb5 {
[%emt 0:03:48]} Qe7 {[%emt 0:02:10]} 27. Nd2 {[%emt 0:00:34]} Rc8 {[%emt 0:01:
03]} 28. Qa4 {[%emt 0:01:20]} h5 {[%emt 0:07:55]} 29. Nb3 {[%emt 0:13:35]} Kh7
{[%emt 0:07:34]} 30. d4 {[%emt 0:08:22]} Rc4 {[%emt 0:06:15]} 31. Qa3 {[%emt 0:
01:34]} Rb4 {[%emt 0:01:37]} 32. Bf1 {[%emt 0:01:43]} exd4 {[%emt 0:05:29]} 33.
exd4 {[%emt 0:04:03]} Bf8 {[%emt 0:01:29]} 34. Qa1 {[%emt 0:03:00]} Bd7 {
[%emt 0:10:05]} 35. Nc3 {[%emt 0:00:10]} Qd6 {[%emt 0:02:19]} 36. Bg2 {[%emt 0:
01:55]} Be6 {[%emt 0:02:06]} 37. Qa8 {[%emt 0:01:58]} Rb8 {[%emt 0:02:22]} 38.
Qa5 {[%emt 0:00:01]} h4 {[%emt 0:07:02]} 39. g4 {[%emt 0:01:29]} Ne7 {[%emt 0:
07:02]} 40. h3 {[%emt 0:00:01]} Bg7 {[%emt 0:00:24]} 41. Ne2 {[%emt 0:01:52]}
f5 {[%emt 0:02:10]} 42. gxf5 {[%emt 0:00:58]} Bxf5 {[%emt 0:00:26]} 43. Rb2 {
[%emt 0:00:01]} Qb4 {[%emt 0:04:05]} 44. Qc7 {[%emt 0:00:30]} Rb7 {[%emt 0:01:
40]} 45. Qc1 {[%emt 0:00:52]} Bh6 {[%emt 0:03:01]} 46. Qd1 {[%emt 0:00:39]} Qa3
{[%emt 0:00:45]} 0-1

[Event "Limburg Open 2022"]
[Site "Maastricht"]
[Date "2022.06.06"]
[Round "6.11"]
[White "Decoster, Frederic"]
[Black "Schroer, Marcel"]
[Result "1-0"]
[ECO "B15"]
[WhiteElo "2295"]
[BlackElo "2096"]
[PlyCount "94"]
[EventDate "2022.06.03"]
[EventType "swiss"]
[EventRounds "7"]
[EventCountry "NED"]
[SourceTitle "Limburg Open"]
[Source "Limburg Open"]
[SourceDate "2022.06.06"]
[SourceVersion "7"]
[SourceVersionDate "2022.06.06"]
[SourceQuality "1"]
[TimeControl "7200+15"]

1. e4 {[%emt 0:00:05]} c6 {[%emt 0:00:12]} 2. d4 {[%emt 0:00:06]} d5 {[%emt 0:
00:07]} 3. Nd2 {[%emt 0:00:08]} dxe4 {[%emt 0:00:07]} 4. Nxe4 {[%emt 0:00:05]}
Nf6 {[%emt 0:00:06]} 5. Nxf6+ {[%emt 0:00:52]} exf6 {[%emt 0:00:08]} 6. Bd3 {
[%emt 0:00:14]} Bd6 {[%emt 0:00:57]} 7. Qh5 {[%emt 0:00:10]} Nd7 {[%emt 0:03:
33]} 8. Ne2 {[%emt 0:02:12]} Nf8 {[%emt 0:01:26]} 9. O-O {[%emt 0:04:12]} Ne6 {
[%emt 0:13:01]} 10. a4 {[%emt 0:15:29]} g6 {[%emt 0:08:22]} 11. Qh4 {[%emt 0:
02:45]} h5 {[%emt 0:06:28]} 12. f4 {[%emt 0:11:40]} f5 {[%emt 0:00:17]} 13.
Qxd8+ {[%emt 0:01:30]} Kxd8 {[%emt 0:01:06]} 14. a5 {[%emt 0:00:27]} Kc7 {
[%emt 0:02:25]} 15. Bd2 {[%emt 0:04:01]} Bd7 {[%emt 0:00:53]} 16. c4 {[%emt 0:
05:27]} Rhe8 {[%emt 0:03:29]} 17. b4 {[%emt 0:04:34]} Rac8 {[%emt 0:07:32]} 18.
Kf2 {[%emt 0:09:41]} Kb8 {[%emt 0:03:01]} 19. Rab1 {[%emt 0:05:37]} Bf8 {
[%emt 0:07:05]} 20. Be3 {[%emt 0:04:12]} Nc7 {[%emt 0:01:17]} 21. Nc3 {[%emt 0:
02:10]} Bg7 {[%emt 0:00:09]} 22. Na4 {[%emt 0:06:06]} Rcd8 {[%emt 0:03:23]} 23.
Rfd1 {[%emt 0:02:07]} Ne6 {[%emt 0:08:43]} 24. Be2 {[%emt 0:02:49]} Bc8 {
[%emt 0:05:50]} 25. d5 {[%emt 0:01:59]} cxd5 {[%emt 0:00:08]} 26. cxd5 {
[%emt 0:00:51]} Nf8 {[%emt 0:04:58]} 27. Nc5 {[%emt 0:02:46]} Nd7 {[%emt 0:10:
04]} 28. Bb5 {[%emt 0:06:54]} Bf8 {[%emt 0:05:21]} 29. Kf3 {[%emt 0:01:37]}
Rxe3+ {[%emt 0:10:47]} 30. Kxe3 {[%emt 0:00:05]} Nxc5 {[%emt 0:00:07]} 31. bxc5
{[%emt 0:00:16]} Bxc5+ {[%emt 0:00:05]} 32. Kf3 {[%emt 0:00:28]} b6 {[%emt 0:
01:51]} 33. axb6 {[%emt 0:12:59]} axb6 {[%emt 0:00:38]} 34. Bc6 {[%emt 0:00:39]
} Bb7 {[%emt 0:02:12]} 35. Ra1 {[%emt 0:03:15]} Rd6 {[%emt 0:04:21]} 36. Bxb7 {
[%emt 0:00:29]} Kxb7 {[%emt 0:00:00]} 37. Ra2 {[%emt 0:01:00]} b5 {[%emt 0:00:
24]} 38. Rd3 {[%emt 0:00:59]} b4 {[%emt 0:00:33]} 39. Ke2 {[%emt 0:01:42]} Kb6
{[%emt 0:00:01]} 40. Kd2 {[%emt 0:00:48]} Kb5 {[%emt 0:00:11]} 41. Rc2 {
[%emt 0:00:11]} Rb6 {[%emt 0:02:24]} 42. Kc1 {[%emt 0:00:26]} Bd6 {[%emt 0:02:
32]} 43. g3 {[%emt 0:00:14]} h4 {[%emt 0:00:08]} 44. Rc8 {[%emt 0:01:28]} hxg3
{[%emt 0:00:11]} 45. hxg3 {[%emt 0:00:01]} Ra6 {[%emt 0:01:02]} 46. Kb1 {
[%emt 0:02:29]} f6 {[%emt 0:00:50]} 47. Re3 {[%emt 0:00:56]} g5 {[%emt 0:00:11]
} 1-0

[Event "Limburg Open 2022"]
[Site "Maastricht"]
[Date "2022.06.06"]
[Round "6.12"]
[White "De Boer, Bas"]
[Black "Van Meegen, Ruud"]
[Result "0-1"]
[ECO "E35"]
[WhiteElo "2115"]
[BlackElo "2285"]
[PlyCount "70"]
[EventDate "2022.06.03"]
[EventType "swiss"]
[EventRounds "7"]
[EventCountry "NED"]
[SourceTitle "Limburg Open"]
[Source "Limburg Open"]
[SourceDate "2022.06.06"]
[SourceVersion "7"]
[SourceVersionDate "2022.06.06"]
[SourceQuality "1"]
[TimeControl "7200+15"]

1. d4 {[%emt 0:00:03]} Nf6 {[%emt 0:00:07]} 2. c4 {[%emt 0:00:05]} e6 {[%emt 0:
00:05]} 3. Nc3 {[%emt 0:00:47]} Bb4 {[%emt 0:00:14]} 4. Qc2 {[%emt 0:00:09]} d5
{[%emt 0:00:53]} 5. cxd5 {[%emt 0:01:24]} exd5 {[%emt 0:00:13]} 6. Bg5 {
[%emt 0:00:15]} c6 {[%emt 0:13:04]} 7. e3 {[%emt 0:01:08]} a5 {[%emt 0:05:19]}
8. Bd3 {[%emt 0:05:08]} Be7 {[%emt 0:03:46]} 9. Nge2 {[%emt 0:06:21]} Na6 {
[%emt 0:00:33]} 10. a3 {[%emt 0:00:12]} Nc7 {[%emt 0:05:44]} 11. f3 {[%emt 0:
05:26]} Ne6 {[%emt 0:10:14]} 12. Bh4 {[%emt 0:01:08]} h6 {[%emt 0:01:55]} 13.
Rd1 {[%emt 0:04:20]} O-O {[%emt 0:01:04]} 14. Bf2 {[%emt 0:05:13]} b5 {[%emt 0:
12:49]} 15. Ng3 {[%emt 0:12:05]} Re8 {[%emt 0:07:33]} 16. O-O {[%emt 0:00:00]}
Ba6 {[%emt 0:02:20]} 17. Nce2 {[%emt 0:00:00]} c5 {[%emt 0:00:15]} 18. dxc5 {
[%emt 0:00:00]} Bxc5 {[%emt 0:11:02]} 19. Nd4 {[%emt 0:13:18]} Nxd4 {[%emt 0:
06:43]} 20. exd4 {[%emt 0:00:11]} Bf8 {[%emt 0:00:09]} 21. Rfe1 {[%emt 0:08:39]
} b4 {[%emt 0:02:53]} 22. Rxe8 {[%emt 0:08:52]} Nxe8 {[%emt 0:00:28]} 23. Bxa6
{[%emt 0:03:37]} Rxa6 {[%emt 0:00:06]} 24. axb4 {[%emt 0:00:18]} axb4 {[%emt 0:
00:12]} 25. Rc1 {[%emt 0:01:00]} Ra7 {[%emt 0:08:25]} 26. Qb3 {[%emt 0:04:35]}
Rc7 {[%emt 0:04:38]} 27. Rxc7 {[%emt 0:02:05]} Qxc7 {[%emt 0:01:26]} 28. Nf1 {
[%emt 0:08:45]} Qc4 {[%emt 0:00:42]} 29. Qd1 {[%emt 0:07:59]} b3 {[%emt 0:03:
09]} 30. Nd2 {[%emt 0:07:20]} Qd3 {[%emt 0:02:17]} 31. Qe1 {[%emt 0:00:07]} Nd6
{[%emt 0:01:57]} 32. Qe3 {[%emt 0:02:44]} Qc2 {[%emt 0:05:37]} 33. Nxb3 {
[%emt 0:08:15]} Nc4 {[%emt 0:00:16]} 34. Qc3 {[%emt 0:00:39]} Qd1+ {[%emt 0:00:
08]} 35. Be1 {[%emt 0:00:31]} Nxb2 {[%emt 0:00:17]} 0-1

[Event "Limburg Open 2022"]
[Site "Maastricht"]
[Date "2022.06.06"]
[Round "6.13"]
[White "Ratsma, Midas"]
[Black "Gupta, Sankalp"]
[Result "0-1"]
[ECO "A06"]
[WhiteElo "2195"]
[BlackElo "2505"]
[PlyCount "62"]
[EventDate "2022.06.03"]
[EventType "swiss"]
[EventRounds "7"]
[EventCountry "NED"]
[SourceTitle "Limburg Open"]
[Source "Limburg Open"]
[SourceDate "2022.06.06"]
[SourceVersion "7"]
[SourceVersionDate "2022.06.06"]
[SourceQuality "1"]
[TimeControl "7200+15"]

1. Nf3 {[%emt 0:00:03]} Nf6 {[%emt 0:03:04]} 2. b3 {[%emt 0:00:09]} d5 {
[%emt 0:00:38]} 3. e3 {[%emt 0:00:11]} Bf5 {[%emt 0:01:35]} 4. Bb2 {[%emt 0:00:
09]} e6 {[%emt 0:00:14]} 5. Nh4 {[%emt 0:00:08]} Bg6 {[%emt 0:08:46]} 6. Nxg6 {
[%emt 0:00:11]} hxg6 {[%emt 0:00:02]} 7. g3 {[%emt 0:00:06]} Nbd7 {[%emt 0:05:
49]} 8. Bg2 {[%emt 0:00:08]} c6 {[%emt 0:00:56]} 9. d3 {[%emt 0:00:08]} e5 {
[%emt 0:00:43]} 10. Nd2 {[%emt 0:02:24]} Bd6 {[%emt 0:01:01]} 11. Qe2 {[%emt 0:
00:32]} Qe7 {[%emt 0:00:31]} 12. a3 {[%emt 0:03:33]} a5 {[%emt 0:00:21]} 13. c4
{[%emt 0:05:34]} O-O {[%emt 0:01:55]} 14. O-O {[%emt 0:12:51]} Rab8 {[%emt 0:
01:27]} 15. g4 {[%emt 0:12:30]} g5 {[%emt 0:07:11]} 16. Rfd1 {[%emt 0:15:24]}
b5 {[%emt 0:04:20]} 17. h3 {[%emt 0:10:09]} bxc4 {[%emt 0:06:37]} 18. dxc4 {
[%emt 0:00:05]} e4 {[%emt 0:00:43]} 19. b4 {[%emt 0:06:04]} axb4 {[%emt 0:11:
56]} 20. axb4 {[%emt 0:00:04]} Be5 {[%emt 0:01:46]} 21. Bxe5 {[%emt 0:02:05]}
Nxe5 {[%emt 0:01:15]} 22. b5 {[%emt 0:02:06]} dxc4 {[%emt 0:00:13]} 23. Nxc4 {
[%emt 0:03:49]} Nxc4 {[%emt 0:01:00]} 24. Qxc4 {[%emt 0:00:04]} cxb5 {[%emt 0:
00:05]} 25. Qb3 {[%emt 0:00:57]} b4 {[%emt 0:00:41]} 26. Ra5 {[%emt 0:01:14]}
Rfc8 {[%emt 0:01:50]} 27. Rd4 {[%emt 0:11:46]} Qe6 {[%emt 0:05:03]} 28. Qb1 {
[%emt 0:06:23]} b3 {[%emt 0:01:18]} 29. Rd1 {[%emt 0:02:13]} b2 {[%emt 0:00:36]
} 30. h4 {[%emt 0:02:03]} Qb3 {[%emt 0:01:41]} 31. Rf1 {[%emt 0:00:51]} Qc2 {
[%emt 0:00:28]} 0-1